[Event "Live Chess"]
[Site "Chess.com"]
[Date "2023.05.20"]
[Round "-"]
[White "Andysav3"]
[Black "Nazarenko_vital"]
[Result "1/2-1/2"]
[WhiteElo "1688"]
[BlackElo "1566"]
[TimeControl "300"]
[EndTime "9:20:23 PDT"]
[Termination "Game drawn by agreement"]

1. e4 {[%clk 0:04:58.4]} 1... d5 {[%clk 0:04:57.7]} 2. exd5 {[%clk 0:04:55.8]}
2... Qxd5 {[%clk 0:04:55.1]} 3. Nc3 {[%clk 0:04:45.3]} 3... Qa5 {[%clk
0:04:54.6]} 4. d4 {[%clk 0:04:42.5]} 4... Nf6 {[%clk 0:04:54]} 5. Nf3 {[%clk
0:04:32]} 5... Bg4 {[%clk 0:04:51.9]} 6. h3 {[%clk 0:04:29.1]} 6... Bh5 {[%clk
0:04:49.8]} 7. g4 {[%clk 0:04:23.9]} 7... Bg6 {[%clk 0:04:47.9]} 8. Ne5 {[%clk
0:04:19.5]} 8... c6 {[%clk 0:04:42.8]} 9. h4 {[%clk 0:04:12.2]} 9... Be4 {[%clk
0:03:57.7]} 10. Rg1 {[%clk 0:03:40.1]} 10... Nd5 {[%clk 0:03:52.2]} 11. Bd2
{[%clk 0:03:32.8]} 11... Nxc3 {[%clk 0:03:48.5]} 12. Bxc3 {[%clk 0:03:31.3]}
12... Qc7 {[%clk 0:03:45.5]} 13. Bc4 {[%clk 0:03:22.7]} 13... Bd5 {[%clk
0:03:41.5]} 14. Bd3 {[%clk 0:03:12.8]} 14... Nd7 {[%clk 0:03:33.8]} 15. Qe2
{[%clk 0:03:08]} 15... O-O-O {[%clk 0:03:29.5]} 16. O-O-O {[%clk 0:03:03.9]}
16... Nxe5 {[%clk 0:03:24.9]} 17. dxe5 {[%clk 0:03:00.5]} 17... e6 {[%clk
0:03:23.6]} 18. b3 {[%clk 0:02:49.3]} 18... Ba3+ {[%clk 0:03:19.6]} 19. Bb2
{[%clk 0:02:48]} 19... Bxb2+ {[%clk 0:03:15.2]} 20. Kxb2 {[%clk 0:02:46.9]}
20... c5 {[%clk 0:03:11.6]} 21. f4 {[%clk 0:02:38.3]} 21... h6 {[%clk
0:03:00.5]} 22. Be4 {[%clk 0:02:26.9]} 22... Bxe4 {[%clk 0:02:55.9]} 23. Qxe4
{[%clk 0:02:25.9]} 23... Rxd1 {[%clk 0:02:48.8]} 24. Rxd1 {[%clk 0:02:24.3]}
24... Rd8 {[%clk 0:02:46.1]} 25. Qe2 {[%clk 0:02:15.7]} 25... Rxd1 {[%clk
0:02:35.2]} 26. Qxd1 {[%clk 0:02:14.6]} 26... g6 {[%clk 0:02:23.9]} 27. Qd3
{[%clk 0:02:11.3]} 27... a6 {[%clk 0:02:12.7]} 28. h5 {[%clk 0:02:03.9]} 28...
gxh5 {[%clk 0:02:08.4]} 29. gxh5 {[%clk 0:02:03.2]} 29... Qc6 {[%clk 0:02:05.2]}
30. Qh7 {[%clk 0:01:54.3]} 30... Qd5 {[%clk 0:01:56.8]} 31. Qg8+ {[%clk
0:01:41.3]} 31... Qd8 {[%clk 0:01:52.5]} 32. Qg1 {[%clk 0:01:28.3]} 32... Qd5
{[%clk 0:01:47]} 33. Qe3 {[%clk 0:01:25.2]} 33... b5 {[%clk 0:01:41.3]} 34. a3
{[%clk 0:01:22.4]} 34... Kc7 {[%clk 0:01:37.5]} 1/2-1/2

[Event "Live Chess"]
[Site "Chess.com"]
[Date "2023.05.20"]
[Round "-"]
[White "miguelchuk"]
[Black "CheckString"]
[Result "1-0"]
[WhiteElo "1650"]
[BlackElo "1352"]
[TimeControl "300"]
[EndTime "9:20:27 PDT"]
[Termination "miguelchuk won by resignation"]

1. Nf3 {[%clk 0:04:57]} 1... c6 {[%clk 0:04:59.9]} 2. c4 {[%clk 0:04:55.3]} 2...
d5 {[%clk 0:04:58.3]} 3. Nc3 {[%clk 0:04:54.1]} 3... d4 {[%clk 0:04:55.7]} 4.
Ne4 {[%clk 0:04:51.4]} 4... Bf5 {[%clk 0:04:46.7]} 5. Ng3 {[%clk 0:04:48.5]}
5... Bg4 {[%clk 0:04:40.1]} 6. Ne5 {[%clk 0:04:41.5]} 6... Be6 {[%clk
0:04:34.9]} 7. e3 {[%clk 0:04:32.3]} 7... Qc7 {[%clk 0:04:26.5]} 8. exd4 {[%clk
0:04:25.2]} 8... Nd7 {[%clk 0:04:22.2]} 9. Nxd7 {[%clk 0:04:20.9]} 9... Qxd7
{[%clk 0:04:22.1]} 10. d5 {[%clk 0:04:06.2]} 10... cxd5 {[%clk 0:04:18.5]} 11.
c5 {[%clk 0:03:59.6]} 11... Rc8 {[%clk 0:04:09.9]} 12. a4 {[%clk 0:03:57.1]}
12... a6 {[%clk 0:04:05]} 13. b4 {[%clk 0:03:54]} 13... g6 {[%clk 0:04:01]} 14.
b5 {[%clk 0:03:47.4]} 14... a5 {[%clk 0:03:46.8]} 15. c6 {[%clk 0:03:40]} 15...
bxc6 {[%clk 0:03:41.5]} 16. bxc6 {[%clk 0:03:37.8]} 16... Qa7 {[%clk 0:03:22.9]}
17. Bb5 {[%clk 0:03:33.6]} 17... Bg7 {[%clk 0:03:16.2]} 18. Ba3 {[%clk
0:03:14.8]} 18... Bxa1 {[%clk 0:03:13.1]} 19. Qxa1 {[%clk 0:03:13]} 19... Rc7
{[%clk 0:03:07.6]} 20. O-O {[%clk 0:03:07.5]} 20... Nf6 {[%clk 0:03:06.7]} 21.
Kh1 {[%clk 0:02:45.9]} 21... O-O {[%clk 0:03:05.2]} 22. h4 {[%clk 0:02:37.6]}
22... Ne4 {[%clk 0:02:59.5]} 23. h5 {[%clk 0:02:22.8]} 23... Nxg3+ {[%clk
0:02:50.3]} 24. fxg3 {[%clk 0:02:18.3]} 24... f5 {[%clk 0:02:36.9]} 25. g4
{[%clk 0:02:07.1]} 25... d4 {[%clk 0:02:14.8]} 26. Bb2 {[%clk 0:01:34.2]} 26...
Rd8 {[%clk 0:02:10.4]} 27. Rf4 {[%clk 0:01:18.9]} 27... fxg4 {[%clk 0:02:04.6]}
28. Bxd4 {[%clk 0:01:16.3]} 28... Qb8 {[%clk 0:01:54.8]} 29. Bh8 {[%clk
0:01:08.3]} 1-0

[Event "Live Chess"]
[Site "Chess.com"]
[Date "2023.05.20"]
[Round "-"]
[White "Misha145Chess"]
[Black "omisoc"]
[Result "0-1"]
[WhiteElo "570"]
[BlackElo "2087"]
[TimeControl "300"]
[EndTime "9:20:29 PDT"]
[Termination "omisoc won by checkmate"]

1. d4 {[%clk 0:04:56.8]} 1... d5 {[%clk 0:04:56.8]} 2. c4 {[%clk 0:04:54.9]}
2... c6 {[%clk 0:04:54.1]} 3. Nc3 {[%clk 0:04:49.6]} 3... dxc4 {[%clk
0:04:51.4]} 4. e4 {[%clk 0:04:47.9]} 4... e5 {[%clk 0:04:49.8]} 5. dxe5 {[%clk
0:04:44.2]} 5... Qxd1+ {[%clk 0:04:47.8]} 6. Nxd1 {[%clk 0:04:44.1]} 6... b5
{[%clk 0:04:45.3]} 7. Nf3 {[%clk 0:04:38.2]} 7... Bb4+ {[%clk 0:04:42.4]} 8. Bd2
{[%clk 0:04:34.4]} 8... Bxd2+ {[%clk 0:04:39.5]} 9. Nxd2 {[%clk 0:04:33.5]} 9...
Nd7 {[%clk 0:04:35.9]} 10. Nf3 {[%clk 0:04:27.7]} 10... Nc5 {[%clk 0:04:32]} 11.
Nc3 {[%clk 0:04:23.9]} 11... Bg4 {[%clk 0:04:30.4]} 12. O-O-O {[%clk 0:04:17]}
12... Ne7 {[%clk 0:04:26.9]} 13. h3 {[%clk 0:04:15.6]} 13... Bxf3 {[%clk
0:04:24.9]} 14. gxf3 {[%clk 0:04:14.5]} 14... Ng6 {[%clk 0:04:24.5]} 15. Be2
{[%clk 0:03:48.2]} 15... Nxe5 {[%clk 0:04:20.2]} 16. Rhg1 {[%clk 0:03:46.2]}
16... O-O {[%clk 0:04:16.1]} 17. f4 {[%clk 0:03:42.1]} 17... Ned3+ {[%clk
0:04:14.5]} 18. Bxd3 {[%clk 0:03:40.6]} 18... Nxd3+ {[%clk 0:04:13.2]} 19. Kd2
{[%clk 0:03:35.3]} 19... Nxf4 {[%clk 0:04:04.8]} 20. Rg3 {[%clk 0:03:28.6]}
20... Rad8+ {[%clk 0:04:01.6]} 21. Ke3 {[%clk 0:03:25.2]} 21... Nd3 {[%clk
0:04:00.1]} 22. Ke2 {[%clk 0:03:16.8]} 22... Rfe8 {[%clk 0:03:55.1]} 23. b4
{[%clk 0:03:09.8]} 23... Nxb4 {[%clk 0:03:50.2]} 24. Rxd8 {[%clk 0:03:07.1]}
24... Rxd8 {[%clk 0:03:48.8]} 25. a3 {[%clk 0:03:02.8]} 25... Nd3 {[%clk
0:03:44.9]} 26. a4 {[%clk 0:02:56.9]} 26... b4 {[%clk 0:03:42.8]} 27. Na2 {[%clk
0:02:51.5]} 27... b3 {[%clk 0:03:36.8]} 28. Nc3 {[%clk 0:02:47]} 28... Nc1+
{[%clk 0:03:21.6]} 29. Ke1 {[%clk 0:02:43.6]} 29... Rd3 {[%clk 0:03:13.9]} 30.
Rxd3 {[%clk 0:02:42.1]} 30... Nxd3+ {[%clk 0:03:12]} 31. Kd2 {[%clk 0:02:39.2]}
31... Kf8 {[%clk 0:03:08.9]} 32. Ke3 {[%clk 0:02:37.3]} 32... Ke7 {[%clk
0:03:07.9]} 33. f4 {[%clk 0:02:31.1]} 33... c5 {[%clk 0:03:04.8]} 34. e5 {[%clk
0:02:29.3]} 34... f6 {[%clk 0:03:01.4]} 35. exf6+ {[%clk 0:02:21.1]} 35... gxf6
{[%clk 0:02:58.7]} 36. Ne4 {[%clk 0:02:19.3]} 36... b2 {[%clk 0:02:53.5]} 37.
Nc3 {[%clk 0:02:11.2]} 37... f5 {[%clk 0:02:52.5]} 38. h4 {[%clk 0:02:08.7]}
38... h5 {[%clk 0:02:50.6]} 39. Kd2 {[%clk 0:01:55.8]} 39... Ke6 {[%clk
0:02:48.4]} 40. Kc2 {[%clk 0:01:52.6]} 40... Nxf4 {[%clk 0:02:45.9]} 41. Kxb2
{[%clk 0:01:51.3]} 41... a5 {[%clk 0:02:42.2]} 42. Nb5 {[%clk 0:01:48.1]} 42...
Nd5 {[%clk 0:02:40.4]} 43. Ka3 {[%clk 0:01:29.5]} 43... f4 {[%clk 0:02:38.5]}
44. Kb2 {[%clk 0:01:27.8]} 44... f3 {[%clk 0:02:37]} 45. Kc1 {[%clk 0:01:26.7]}
45... f2 {[%clk 0:02:35.5]} 46. Kd2 {[%clk 0:01:21.7]} 46... f1=Q {[%clk
0:02:33.8]} 47. Kc2 {[%clk 0:01:20.4]} 47... Qd3+ {[%clk 0:02:30.9]} 48. Kb2
{[%clk 0:01:18.4]} 48... c3+ {[%clk 0:02:30]} 49. Kb3 {[%clk 0:01:16.8]} 49...
c2+ {[%clk 0:02:28.8]} 50. Kb2 {[%clk 0:01:15.4]} 50... Qd1 {[%clk 0:02:27.9]}
51. Nc3 {[%clk 0:00:49.5]} 51... c1=Q+ {[%clk 0:02:21.3]} 52. Ka2 {[%clk
0:00:45.7]} 52... Nxc3# {[%clk 0:02:18.4]} 0-1

[Event "Live Chess"]
[Site "Chess.com"]
[Date "2023.05.20"]
[Round "-"]
[White "dhanushkasri"]
[Black "lightningorderyt"]
[Result "0-1"]
[WhiteElo "471"]
[BlackElo "509"]
[TimeControl "300"]
[EndTime "9:20:30 PDT"]
[Termination "lightningorderyt won by checkmate"]

1. e4 {[%clk 0:04:53.6]} 1... c6 {[%clk 0:04:58.8]} 2. Bc4 {[%clk 0:04:49]} 2...
d5 {[%clk 0:04:57.6]} 3. exd5 {[%clk 0:04:40.4]} 3... cxd5 {[%clk 0:04:57.5]} 4.
Bb3 {[%clk 0:04:37.3]} 4... Nf6 {[%clk 0:04:53]} 5. Nf3 {[%clk 0:04:34.1]} 5...
Bg4 {[%clk 0:04:43.8]} 6. O-O {[%clk 0:04:31.4]} 6... e5 {[%clk 0:04:42.2]} 7.
h3 {[%clk 0:04:09.3]} 7... Bxf3 {[%clk 0:04:33.7]} 8. gxf3 {[%clk 0:04:07.4]}
8... Nc6 {[%clk 0:04:30.5]} 9. c4 {[%clk 0:03:46.1]} 9... d4 {[%clk 0:04:13.7]}
10. c5 {[%clk 0:03:36.6]} 10... Bxc5 {[%clk 0:04:10.6]} 11. Qc2 {[%clk 0:03:25]}
11... O-O {[%clk 0:04:01.4]} 12. Qxc5 {[%clk 0:03:16]} 12... e4 {[%clk
0:03:49.7]} 13. fxe4 {[%clk 0:03:12.5]} 13... Nxe4 {[%clk 0:03:45.3]} 14. Qc2
{[%clk 0:02:57.5]} 14... Qg5+ {[%clk 0:03:40.9]} 15. Kh1 {[%clk 0:02:46.3]}
15... Rfe8 {[%clk 0:03:21]} 16. Rg1 {[%clk 0:02:43.9]} 16... Nxf2+ {[%clk
0:03:16.1]} 17. Kh2 {[%clk 0:02:38.2]} 17... Qf4+ {[%clk 0:03:09.4]} 18. Kg2
{[%clk 0:02:26.5]} 18... Re2 {[%clk 0:03:05.5]} 19. Qd1 {[%clk 0:02:18.1]} 19...
Nxd1+ {[%clk 0:03:01.9]} 20. Kh1 {[%clk 0:02:00.4]} 20... Qh2# {[%clk
0:02:59.2]} 0-1

[Event "Live Chess"]
[Site "Chess.com"]
[Date "2023.05.20"]
[Round "-"]
[White "LaupMiths"]
[Black "Prijmak"]
[Result "1-0"]
[WhiteElo "1805"]
[BlackElo "1018"]
[TimeControl "300"]
[EndTime "9:20:32 PDT"]
[Termination "LaupMiths won by resignation"]

1. c4 {[%clk 0:04:55.4]} 1... c5 {[%clk 0:04:55.8]} 2. Nf3 {[%clk 0:04:52.7]}
2... Nc6 {[%clk 0:04:54]} 3. d4 {[%clk 0:04:51.7]} 3... cxd4 {[%clk 0:04:51.9]}
4. Nxd4 {[%clk 0:04:51.3]} 4... Nxd4 {[%clk 0:04:51]} 5. Qxd4 {[%clk 0:04:49.5]}
5... Qc7 {[%clk 0:04:44]} 6. e4 {[%clk 0:04:47.1]} 6... e6 {[%clk 0:04:41.4]} 7.
Nc3 {[%clk 0:04:44.9]} 7... Nf6 {[%clk 0:04:39]} 8. Bd3 {[%clk 0:04:42.1]} 8...
Bc5 {[%clk 0:04:35.1]} 9. Nb5 {[%clk 0:04:39.9]} 9... Qc6 {[%clk 0:04:30.3]} 10.
Qe5 {[%clk 0:04:32.9]} 10... d6 {[%clk 0:04:24.3]} 11. Qf4 {[%clk 0:04:26.8]}
11... a6 {[%clk 0:04:19]} 12. Nc3 {[%clk 0:04:25.1]} 12... Bb4 {[%clk
0:04:15.9]} 13. Bd2 {[%clk 0:04:23.3]} 13... O-O {[%clk 0:04:11.4]} 14. O-O
{[%clk 0:04:20.1]} 14... b6 {[%clk 0:03:59.7]} 15. Rac1 {[%clk 0:04:11.6]} 15...
Bb7 {[%clk 0:03:52]} 16. Rfe1 {[%clk 0:04:09.7]} 16... e5 {[%clk 0:03:48.1]} 17.
Qf3 {[%clk 0:04:00.7]} 17... Bc8 {[%clk 0:03:44.2]} 18. h3 {[%clk 0:03:58]}
18... h6 {[%clk 0:03:41.8]} 19. a3 {[%clk 0:03:55.2]} 19... Bc5 {[%clk
0:03:39.1]} 20. b4 {[%clk 0:03:51.6]} 20... Bd4 {[%clk 0:03:37.9]} 21. Nd5
{[%clk 0:03:51]} 21... Nxd5 {[%clk 0:03:33.7]} 22. cxd5 {[%clk 0:03:49.2]} 22...
Qd7 {[%clk 0:03:31.5]} 23. Qe2 {[%clk 0:03:38.6]} 23... b5 {[%clk 0:03:24.7]}
24. Kh1 {[%clk 0:03:31.7]} 24... Bb7 {[%clk 0:03:18.2]} 25. Qf3 {[%clk
0:03:27.6]} 25... Rac8 {[%clk 0:03:12.6]} 26. Qg3 {[%clk 0:03:26.4]} 26... Kh7
{[%clk 0:03:10.1]} 27. f4 {[%clk 0:03:22.5]} 27... Rxc1 {[%clk 0:03:01]} 28.
Bxc1 {[%clk 0:03:20.4]} 28... f6 {[%clk 0:02:53.7]} 29. f5 {[%clk 0:03:14.6]}
29... Qf7 {[%clk 0:02:48.7]} 30. Be2 {[%clk 0:03:12.6]} 30... Bc3 {[%clk
0:02:44.1]} 31. Rf1 {[%clk 0:03:10.3]} 31... Bd4 {[%clk 0:02:40.9]} 32. Qh4
{[%clk 0:03:08.6]} 32... Rg8 {[%clk 0:02:34.1]} 33. Bh5 {[%clk 0:03:07]} 33...
Qe7 {[%clk 0:02:26.6]} 34. Bg6+ {[%clk 0:03:05.8]} 34... Kh8 {[%clk 0:02:22.9]}
35. Bxh6 {[%clk 0:03:05.2]} 35... gxh6 {[%clk 0:02:17.2]} 36. Qxh6+ {[%clk
0:03:04.1]} 1-0

[Event "Live Chess"]
[Site "Chess.com"]
[Date "2023.05.20"]
[Round "-"]
[White "Ferrarifan27"]
[Black "lucaskk818"]
[Result "0-1"]
[WhiteElo "2141"]
[BlackElo "1880"]
[TimeControl "300"]
[EndTime "9:20:34 PDT"]
[Termination "lucaskk818 won by checkmate"]

1. e4 {[%clk 0:04:58.9]} 1... e6 {[%clk 0:04:58.7]} 2. d4 {[%clk 0:04:57.8]}
2... d5 {[%clk 0:04:58.2]} 3. Nc3 {[%clk 0:04:55.2]} 3... Bb4 {[%clk 0:04:57.5]}
4. e5 {[%clk 0:04:54]} 4... c5 {[%clk 0:04:56.8]} 5. a3 {[%clk 0:04:52.4]} 5...
Bxc3+ {[%clk 0:04:56.3]} 6. bxc3 {[%clk 0:04:51.3]} 6... Ne7 {[%clk 0:04:56.2]}
7. Qg4 {[%clk 0:04:49.2]} 7... Qc7 {[%clk 0:04:55.8]} 8. Qxg7 {[%clk 0:04:47.6]}
8... Rg8 {[%clk 0:04:55.4]} 9. Qxh7 {[%clk 0:04:46.7]} 9... cxd4 {[%clk
0:04:55]} 10. Qd3 {[%clk 0:04:45.8]} 10... Qxe5+ {[%clk 0:04:53.7]} 11. Be2
{[%clk 0:04:43.1]} 11... dxc3 {[%clk 0:04:52.9]} 12. Nf3 {[%clk 0:04:42.1]}
12... Qg7 {[%clk 0:04:50.8]} 13. Bf4 {[%clk 0:04:16.6]} 13... Nbc6 {[%clk
0:04:40.2]} 14. O-O-O {[%clk 0:04:05.6]} 14... e5 {[%clk 0:04:29.5]} 15. Nxe5
{[%clk 0:03:53.8]} 15... Nxe5 {[%clk 0:04:26.7]} 16. Qxc3 {[%clk 0:03:52.9]}
16... N5c6 {[%clk 0:03:51.4]} 17. Qe3 {[%clk 0:03:34.3]} 17... Qa1+ {[%clk
0:03:36.2]} 18. Kd2 {[%clk 0:03:32.5]} 18... Qd4+ {[%clk 0:03:34.9]} 19. Qxd4
{[%clk 0:03:28.3]} 19... Nxd4 {[%clk 0:03:34.8]} 20. g3 {[%clk 0:03:13.7]} 20...
Nxe2 {[%clk 0:03:25.9]} 21. Kxe2 {[%clk 0:03:12.2]} 21... Be6 {[%clk 0:03:14.3]}
22. Rb1 {[%clk 0:03:09]} 22... b6 {[%clk 0:03:11.2]} 23. h4 {[%clk 0:03:01.4]}
23... Rc8 {[%clk 0:03:04.8]} 24. Kd2 {[%clk 0:02:57.5]} 24... Bf5 {[%clk
0:02:54.3]} 25. Rbc1 {[%clk 0:02:53.4]} 25... Ng6 {[%clk 0:02:50.1]} 26. Be3
{[%clk 0:02:42.9]} 26... Ne5 {[%clk 0:02:38.9]} 27. a4 {[%clk 0:02:10.7]} 27...
Nf3+ {[%clk 0:02:37.4]} 28. Ke2 {[%clk 0:02:07.1]} 28... Bg4 {[%clk 0:02:36.4]}
29. Kf1 {[%clk 0:02:01.6]} 29... d4 {[%clk 0:02:20.2]} 30. Bf4 {[%clk
0:02:00.2]} 30... d3 {[%clk 0:02:14.4]} 31. cxd3 {[%clk 0:01:58.1]} 31... Rxc1+
{[%clk 0:02:10.8]} 32. Bxc1 {[%clk 0:01:58]} 32... Ke7 {[%clk 0:01:55.8]} 33.
Kg2 {[%clk 0:01:54.8]} 33... Rd8 {[%clk 0:01:43.7]} 34. Be3 {[%clk 0:01:31.6]}
34... Rxd3 {[%clk 0:01:31.6]} 35. h5 {[%clk 0:01:21.9]} 35... Ne5 {[%clk
0:01:14.3]} 36. Rh4 {[%clk 0:01:16.5]} 36... Bf3+ {[%clk 0:01:10.5]} 37. Kh2
{[%clk 0:01:12]} 37... Rd1 {[%clk 0:00:48.1]} 38. g4 {[%clk 0:01:09.9]} 38...
Rh1+ {[%clk 0:00:43.2]} 39. Kg3 {[%clk 0:01:09.2]} 39... Rxh4 {[%clk 0:00:41.6]}
40. Kxh4 {[%clk 0:01:09.1]} 40... Bxg4 {[%clk 0:00:39.2]} 41. Bf4 {[%clk
0:00:51.4]} 41... Bxh5 {[%clk 0:00:25.6]} 42. Bxe5 {[%clk 0:00:42.8]} 42... Bg6
{[%clk 0:00:22.5]} 43. Bb8 {[%clk 0:00:35.6]} 43... a6 {[%clk 0:00:21.9]} 44.
Ba7 {[%clk 0:00:34.8]} 44... b5 {[%clk 0:00:21]} 45. axb5 {[%clk 0:00:33.7]}
45... axb5 {[%clk 0:00:20.9]} 46. Bc5+ {[%clk 0:00:33]} 46... Ke6 {[%clk
0:00:19.8]} 47. Kg5 {[%clk 0:00:28.7]} 47... Kd5 {[%clk 0:00:19.1]} 48. Bf8
{[%clk 0:00:23]} 48... Ke5 {[%clk 0:00:17]} 49. f4+ {[%clk 0:00:21.7]} 49... Ke6
{[%clk 0:00:15.1]} 50. Bb4 {[%clk 0:00:18.8]} 50... Bf5 {[%clk 0:00:14.1]} 51.
Bc3 {[%clk 0:00:16.5]} 51... Bd3 {[%clk 0:00:13.4]} 52. Bd2 {[%clk 0:00:15.1]}
52... f5 {[%clk 0:00:12.8]} 53. Bb4 {[%clk 0:00:13.7]} 53... Be4 {[%clk
0:00:12.7]} 54. Kg6 {[%clk 0:00:12.7]} 54... Kd5 {[%clk 0:00:12.6]} 55. Bd2
{[%clk 0:00:11.1]} 55... Kc4 {[%clk 0:00:12.5]} 56. Be1 {[%clk 0:00:10.3]} 56...
b4 {[%clk 0:00:12.2]} 57. Bxb4 {[%clk 0:00:09.4]} 57... Kxb4 {[%clk 0:00:12.1]}
58. Kf6 {[%clk 0:00:09.1]} 58... Kc4 {[%clk 0:00:11.8]} 59. Ke5 {[%clk 0:00:09]}
59... Kd3 {[%clk 0:00:11.7]} 60. Ke6 {[%clk 0:00:08.3]} 60... Ke3 {[%clk
0:00:11.6]} 61. Kf6 {[%clk 0:00:08.1]} 61... Kf3 {[%clk 0:00:11]} 62. Ke6 {[%clk
0:00:07.9]} 62... Kxf4 {[%clk 0:00:10.7]} 63. Kd6 {[%clk 0:00:07.2]} 63... Kg4
{[%clk 0:00:10.6]} 64. Ke7 {[%clk 0:00:07.1]} 64... f4 {[%clk 0:00:10.1]} 65.
Kf7 {[%clk 0:00:07]} 65... f3 {[%clk 0:00:10]} 66. Kg7 {[%clk 0:00:06.9]} 66...
f2 {[%clk 0:00:09.9]} 67. Kh6 {[%clk 0:00:06.8]} 67... f1=Q {[%clk 0:00:09.6]}
68. Kg7 {[%clk 0:00:06.7]} 68... Qf5 {[%clk 0:00:09.2]} 69. Kg8 {[%clk
0:00:06.6]} 69... Qg6+ {[%clk 0:00:08.5]} 70. Kh8 {[%clk 0:00:06.5]} 70... Qh7#
{[%clk 0:00:07.5]} 0-1

[Event "Live Chess"]
[Site "Chess.com"]
[Date "2023.05.20"]
[Round "-"]
[White "SaraTang"]
[Black "KuriyamaMiraiUA"]
[Result "0-1"]
[WhiteElo "168"]
[BlackElo "586"]
[TimeControl "300"]
[EndTime "9:20:35 PDT"]
[Termination "KuriyamaMiraiUA won by checkmate"]

1. e4 {[%clk 0:04:58.4]} 1... c6 {[%clk 0:04:58.2]} 2. Bc4 {[%clk 0:04:56]} 2...
d5 {[%clk 0:04:56.4]} 3. exd5 {[%clk 0:04:54.1]} 3... cxd5 {[%clk 0:04:55.5]} 4.
Bb3 {[%clk 0:04:47.3]} 4... Nf6 {[%clk 0:04:47.7]} 5. Qf3 {[%clk 0:04:45.1]}
5... Bg4 {[%clk 0:04:38.2]} 6. Qd3 {[%clk 0:04:39.2]} 6... e5 {[%clk 0:04:28.8]}
7. Bxd5 {[%clk 0:04:37.6]} 7... Nxd5 {[%clk 0:04:27]} 8. Qg3 {[%clk 0:04:32.7]}
8... Qg5 {[%clk 0:04:03.7]} 9. f3 {[%clk 0:04:28.7]} 9... h5 {[%clk 0:03:18.5]}
10. fxg4 {[%clk 0:04:26.4]} 10... hxg4 {[%clk 0:03:16.7]} 11. h3 {[%clk
0:04:24.6]} 11... Bd6 {[%clk 0:03:04.5]} 12. hxg4 {[%clk 0:04:22.2]} 12... Rxh1
{[%clk 0:03:02.8]} 13. Kf1 {[%clk 0:04:16.4]} 13... Qf6+ {[%clk 0:02:38.9]} 14.
Ke2 {[%clk 0:03:53]} 14... Rxg1 {[%clk 0:02:30.5]} 15. d4 {[%clk 0:03:37.5]}
15... Nf4+ {[%clk 0:02:18.4]} 16. Kf2 {[%clk 0:03:33.1]} 16... Nh5+ {[%clk
0:02:14.3]} 17. Qf3 {[%clk 0:03:27.9]} 17... Rf1+ {[%clk 0:02:09.6]} 18. Kxf1
{[%clk 0:03:09.4]} 18... Qxf3+ {[%clk 0:02:08.4]} 19. Ke1 {[%clk 0:03:06.4]}
19... Qxg2 {[%clk 0:02:04.1]} 20. Bg5 {[%clk 0:03:00.2]} 20... Qxg4 {[%clk
0:01:58.7]} 21. Be7 {[%clk 0:02:56.3]} 21... Ng3 {[%clk 0:01:54.9]} 22. Bxd6
{[%clk 0:02:53.8]} 22... Qe2# {[%clk 0:01:53]} 0-1

[Event "Live Chess"]
[Site "Chess.com"]
[Date "2023.05.20"]
[Round "-"]
[White "ReeceHockton"]
[Black "f4nomore"]
[Result "0-1"]
[WhiteElo "328"]
[BlackElo "1351"]
[TimeControl "300"]
[EndTime "9:20:35 PDT"]
[Termination "f4nomore won by resignation"]

1. d4 {[%clk 0:04:55.1]} 1... g6 {[%clk 0:04:59.9]} 2. e4 {[%clk 0:04:49.7]}
2... Bg7 {[%clk 0:04:59.8]} 3. Nf3 {[%clk 0:04:45.7]} 3... d6 {[%clk 0:04:59.7]}
4. Nc3 {[%clk 0:04:44]} 4... Nf6 {[%clk 0:04:59.6]} 5. b3 {[%clk 0:04:34.1]}
5... O-O {[%clk 0:04:58.3]} 6. Bb2 {[%clk 0:04:33.1]} 6... a6 {[%clk 0:04:57.3]}
7. Qd2 {[%clk 0:04:31.9]} 7... b5 {[%clk 0:04:55.6]} 8. O-O-O {[%clk 0:04:29.6]}
8... Ng4 {[%clk 0:04:51.1]} 9. a4 {[%clk 0:04:26]} 9... Bh6 {[%clk 0:04:49.1]}
10. Qxh6 {[%clk 0:04:03.2]} 10... Nxh6 {[%clk 0:04:46.9]} 11. d5 {[%clk
0:04:01.2]} 11... Ng4 {[%clk 0:04:42.1]} 12. Be2 {[%clk 0:03:58]} 12... Nxf2
{[%clk 0:04:39.9]} 13. Bf1 {[%clk 0:03:52.4]} 13... Nxh1 {[%clk 0:04:37.9]} 0-1

[Event "Live Chess"]
[Site "Chess.com"]
[Date "2023.05.20"]
[Round "-"]
[White "zdanevych"]
[Black "M00nDr4g0n"]
[Result "1-0"]
[WhiteElo "1490"]
[BlackElo "872"]
[TimeControl "300"]
[EndTime "9:20:37 PDT"]
[Termination "zdanevych won by resignation"]

1. d4 {[%clk 0:04:58.9]} 1... d5 {[%clk 0:04:55.9]} 2. c4 {[%clk 0:04:58]} 2...
e5 {[%clk 0:04:53.2]} 3. dxe5 {[%clk 0:04:56.7]} 3... dxc4 {[%clk 0:04:50.4]} 4.
Qxd8+ {[%clk 0:04:52.6]} 4... Kxd8 {[%clk 0:04:50.3]} 5. e4 {[%clk 0:04:50.9]}
5... Nc6 {[%clk 0:04:40.2]} 6. Nf3 {[%clk 0:04:49]} 6... Bb4+ {[%clk 0:04:33.4]}
7. Nc3 {[%clk 0:04:47.6]} 7... Bxc3+ {[%clk 0:04:31.5]} 8. bxc3 {[%clk
0:04:47.5]} 8... Nge7 {[%clk 0:04:23.9]} 9. Bxc4 {[%clk 0:04:46.3]} 9... b6
{[%clk 0:04:11.7]} 10. Bxf7 {[%clk 0:04:41.3]} 10... Bb7 {[%clk 0:04:05.6]} 11.
Bd5 {[%clk 0:04:38.5]} 11... Nxd5 {[%clk 0:03:54.5]} 12. exd5 {[%clk 0:04:38.4]}
12... Ne7 {[%clk 0:03:48.3]} 13. c4 {[%clk 0:04:36.7]} 13... Nf5 {[%clk
0:03:44.8]} 14. Bg5+ {[%clk 0:04:33.3]} 14... Kd7 {[%clk 0:03:39.8]} 15. e6+
{[%clk 0:04:30.5]} 15... Kd6 {[%clk 0:03:37.5]} 16. Bf4+ {[%clk 0:04:26]} 16...
Ke7 {[%clk 0:03:31.3]} 17. Bxc7 {[%clk 0:04:22.6]} 17... Rac8 {[%clk 0:03:25.3]}
18. Be5 {[%clk 0:04:06]} 18... Rxc4 {[%clk 0:03:17.9]} 19. O-O {[%clk
0:04:02.9]} 19... Bxd5 {[%clk 0:03:03.7]} 20. Rfd1 {[%clk 0:03:31.6]} 20... Bxf3
{[%clk 0:02:59.9]} 21. gxf3 {[%clk 0:03:29.7]} 21... Kxe6 {[%clk 0:02:57]} 22.
f4 {[%clk 0:03:27.5]} 22... h6 {[%clk 0:02:47]} 23. Rd2 {[%clk 0:03:21.8]} 23...
Rg8 {[%clk 0:02:43.7]} 24. Rad1 {[%clk 0:03:19.4]} 24... Rcc8 {[%clk 0:02:14.8]}
25. Rd7 {[%clk 0:03:17]} 25... g5 {[%clk 0:02:08.8]} 26. Kf1 {[%clk 0:03:05.6]}
26... gxf4 {[%clk 0:02:06]} 27. Bxf4 {[%clk 0:03:05.5]} 27... Rgd8 {[%clk
0:01:51.9]} 28. Rxd8 {[%clk 0:03:03.3]} 28... Rxd8 {[%clk 0:01:50.8]} 29. Rxd8
{[%clk 0:03:03.2]} 29... a5 {[%clk 0:01:41.9]} 30. Bc7 {[%clk 0:02:59.7]} 30...
Ng7 {[%clk 0:01:26.2]} 31. Bxb6 {[%clk 0:02:55.9]} 31... Kf5 {[%clk 0:01:18.2]}
32. Bxa5 {[%clk 0:02:53.2]} 1-0